fUSD/lending_fUSD_20251224
["ID","MTS","AMOUNT","RATE_DAILY","PERIOD"]
[399624473,1766563838629,-500.0,0.00024799,2]
[399624474,1766563838639,-1311.2555849,0.000248,2]
[399624475,1766563838647,-9381.74455226,0.000248,3]
[399624476,1766563838664,-4029.7571696,0.000248,3]
[399624477,1766563838675,-3029.16790695,0.000248,3]
[399624478,1766563838686,-494.15426274,0.000248,3]
[399624479,1766563839831,-151.0,0.0001741,2]
[399624480,1766563839841,-4807.0,0.00020946,2]
[399624481,1766563839851,-500.70766283,0.00020973,2]
[399624482,1766563839861,-501.83382232,0.00020973,2]
[399624483,1766563839871,-530.33299684,0.00020973,2]
[399624485,1766563839881,-500.0,0.00020973,2]
[399624486,1766563839891,-1000.0,0.00021521,2]
[399624487,1766563839900,-1502.99717494,0.00022068,2]
[399624488,1766563839910,-500.0,0.00022756,2]
[399624489,1766563839920,-500.0,0.00022756,2]
[399624490,1766563839929,-500.0,0.00022756,2]
[399624491,1766563839939,-500.0,0.00022756,2]
[399624493,1766563839949,-4807.0,0.00023946,2]
[399624495,1766563839959,-508839.82195245,0.000248,3]
[399624496,1766563839969,-150.0,0.000248,2]
[399624497,1766563839981,-500.0,0.00024816,2]
[399624498,1766563839993,-500.0,0.00024816,2]
[399624499,1766563840004,-236.87253658,0.0002482,2]
[399624500,1766563840014,-522.01353505,0.00024826,2]
[399624501,1766563840026,-500.0,0.00024826,2]
[399624502,1766563840036,-500.0,0.00024826,2]
[399624503,1766563840045,-280.27392163,0.0002489,2]
[399624504,1766563840058,-151.0,0.00024897,7]
[399624505,1766563840067,-500.0,0.00024899,2]
[399624506,1766563840077,-320509.78387066,0.000249,3]
[399624507,1766563840089,-599.4713,0.000249,3]
[399624508,1766563840101,-1335.00000421,0.000249,3]
[399624509,1766563840113,-349.056,0.000249,3]
[399624510,1766563840129,-1320.48682641,0.000249,3]
[399624511,1766563840419,-500.0,0.00022756,2]
[399624512,1766563840429,-5.60542929,0.00022756,2]
[399624513,1766563840445,-494.39457071,0.00022756,2]
[399624514,1766563840454,-500.0,0.00022756,2]
[399624515,1766563840463,-261.98546245,0.00022756,2]
[399624516,1766563840475,-238.01453755,0.00022756,2]
[399624517,1766563840485,-160.50658273,0.00022756,2]
[399624518,1766563840516,-339.49341727,0.00022756,2]
[399624519,1766563840526,-500.0,0.00022756,2]
[399624520,1766563840536,-1131.4730243,0.0002342,2]
[399624521,1766563840546,-288.42951792,0.000245,2]
[399624522,1766563840555,-380.10404047,0.000249,3]
[399624524,1766563840845,-1.7e-07,0.000249,3]
[399624534,1766563843145,-500.0,0.00017225,2]
[399624535,1766563843154,-500.0,0.00017225,2]
[399624536,1766563843165,-217.67300401,0.00017225,2]
[399624537,1766563843174,-564.0,0.00020946,2]
[399624538,1766563843183,-500.0923857,0.00020973,2]
[399624539,1766563843193,-500.0,0.00022756,2]
[399624540,1766563843202,-500.0,0.00022756,2]
[399624541,1766563843211,-500.0,0.00022756,2]
[399624542,1766563843223,-500.0,0.00022756,2]
[399624543,1766563843233,-500.0,0.00022756,2]
[399624544,1766563843243,-500.0,0.00022756,2]
[399624545,1766563843252,-500.0,0.00022756,2]
[399624546,1766563843262,-500.0,0.00022756,2]
[399624547,1766563843271,-500.0,0.00022756,2]
[399624548,1766563843280,-564.0,0.00023946,2]
[399624549,1766563843290,-51460.46755108,0.000249,3]
[399624550,1766563843300,-797.40688775,0.0002492,10]
[399624551,1766563843310,-500.0,0.00024989,2]
[399624552,1766563843320,-52577.4645844,0.0002499,3]
[399624553,1766563843330,-59361.2162515,0.0002499,3]
[399624554,1766563843339,-66388.41348909,0.00025,120]
[399624556,1766563845953,-500.0,0.00022756,2]
[399624557,1766563845964,-420.86,0.00022756,2]
[399624558,1766563846112,-79.14,0.00022756,2]
[399624559,1766563846123,-500.0,0.00022756,2]
[399624560,1766563846133,-500.0,0.00022756,2]
[399624561,1766563846143,-500.0,0.00022756,2]
[399624562,1766563846153,-500.0,0.00022756,2]
[399624563,1766563846164,-500.0,0.00022756,2]
[399624564,1766563846174,-500.0,0.00022756,2]
[399624565,1766563846184,-500.0,0.00022756,2]
[399624566,1766563846195,-500.0,0.00022756,2]
[399624567,1766563846205,-8992.5815192,0.00025,120]
[399624568,1766563846216,-974.9999998,0.00025,120]
[399624570,1766563846229,-564.67872648,0.00025,120]
[399624572,1766563846241,-943.870009,0.00025,120]
[399624574,1766563846253,-884.1,0.00025,120]
[399624604,1766563896290,-150.0,0.00017183,2]
[399624605,1766563896455,500.0,0.00013599,2]
[399624608,1766563987557,605.762477,7.945e-05,2]
[399624617,1766564513276,1617.18621145,0.00014934,2]
[399624618,1766564518806,2364.97,0.00021918,30]
[399624622,1766564655435,347.65,0.00014935,2]
[399624624,1766564753479,6929.41131155,0.0001299,2]
[399624625,1766564753514,10000.01,0.0001299,2]
[399624626,1766564753552,10000.01,0.0001299,2]
[399624627,1766564753577,10000.01,0.0001299,2]
[399624628,1766564753603,10000.01,0.0001299,2]
[399624629,1766564753628,7182.90590906,0.0001299,2]
[399624631,1766564803144,-243.26166056,0.00015172,2]
[399624633,1766564871940,1368.12742309,0.00012,2]
[399624635,1766564918504,1421.25020283,0.0001,2]
[399624637,1766564956082,-32.73833944,0.00015172,2]
[399624638,1766564956104,-250.0,0.00015172,2]
[399624639,1766564956125,-500.0,0.00015173,2]
[399624640,1766564956145,-235.78527885,0.00015173,2]
[399624641,1766564956165,-278.25435407,0.00015173,2]
[399624642,1766564956187,-628.74466139,0.00015173,2]
[399624643,1766564956208,-250.0,0.00015176,2]
[399624644,1766564956229,-500.0,0.00015223,2]
[399624646,1766565024571,500.0,0.00015173,2]
[399624663,1766565031956,-200.52699776,0.00015721,2]
[399624667,1766565031967,-500.0,0.00015721,2]
[399624669,1766565031977,-250.0,0.00015721,2]
[399624670,1766565031993,-95.98482822,0.00015721,2]
[399624675,1766565032113,-99.01517178,0.00015721,2]
[399624676,1766565032123,-281.0,0.00015721,2]
[399624677,1766565032134,-154.17,0.00015764,2]
[399624678,1766565032144,-195.0,0.00015832,2]
[399624679,1766565032154,-200.0,0.00015854,2]
[399624680,1766565032165,-210.74513821,0.000161,2]
[399624681,1766565032175,-151.0,0.00016136,2]
[399624682,1766565032187,-151.0,0.00016175,2]
[399624683,1766565032197,-151.0,0.00016179,2]
[399624684,1766565032207,-1200.0,0.00016199,2]
[399624685,1766565032217,-5000.0059917,0.000162,5]
[399624686,1766565032228,-215.55,0.00016322,2]
[399624687,1766565032238,-150.0,0.00016593,2]
[399624688,1766565032248,-300.0,0.00016611,2]
[399624689,1766565032258,-450.0,0.00016611,2]
[399624690,1766565032269,-543.0,0.00016612,2]
[399624691,1766565032279,-322.6107,0.00016612,2]
[399624692,1766565032290,-578.20924308,0.00016612,2]
[399624693,1766565032300,-200.0,0.00016612,2]
[399624694,1766565032310,-207.4,0.00016612,2]
[399624695,1766565032322,-215.0738,0.00016612,2]
[399624696,1766565032332,-223.0315306,0.00016612,2]
[399624697,1766565032343,-231.28369723,0.00016612,2]
[399624698,1766565032353,-239.84119403,0.00016612,2]
[399624699,1766565032363,-248.71531821,0.00016612,2]
[399624701,1766565032373,-257.91778498,0.00016612,2]
[399624703,1766565032384,-267.46074303,0.00016612,2]
[399624705,1766565032394,-249.73724152,0.00016612,2]
[399624706,1766565032405,-413.21045603,0.00016614,2]
[399624707,1766565032415,-300.0,0.00016689,2]
[399624708,1766565032426,-195.0,0.00016689,2]
[399624709,1766565032442,-250.0,0.00016689,2]
[399624710,1766565032885,-164.17,0.00016712,2]
[399624711,1766565032920,-565.61,0.00016763,2]
[399624712,1766565032930,-3239.64,0.0001678,2]
[399624713,1766565032940,-5741.95,0.00016853,2]
[399624714,1766565032951,-2500.0,0.00016886,2]
[399624715,1766565032961,-1446.31470914,0.000169,2]
[399624716,1766565032971,-354.8619141,0.000169,2]
[399624717,1766565032981,-204.54118547,0.000169,2]
[399624718,1766565032990,-384.6906458,0.000169,2]
[399624719,1766565033001,-620.0,0.00016976,2]
[399624720,1766565033011,-231.28369723,0.00016976,2]
[399624721,1766565033025,-500.0,0.00016985,2]
[399624722,1766565033035,-500.0,0.00016985,2]
[399624723,1766565033045,-500.0,0.00016985,2]
[399624724,1766565033055,-500.0,0.00016985,2]
[399624725,1766565033065,-500.0,0.00016985,2]
[399624726,1766565033076,-500.0,0.00016985,2]
[399624727,1766565033086,-500.0,0.00016985,2]
[399624728,1766565033096,-382.15928147,0.00016985,2]
[399624729,1766565033107,-55498.37863311,0.00016986,2]
[399624730,1766565033150,-10196.18963915,0.00016986,2]
[399624731,1766565033162,-28149.99384767,0.00016986,2]
[399624732,1766565033173,-5378.53161582,0.00016986,2]
[399624733,1766565033185,-302.0,0.00016986,2]
[399624734,1766565033197,-485.01153519,0.00016986,2]
[399624738,1766565038110,-151.0,0.00016141,2]
[399624739,1766565038120,-1330.67608248,0.000169,2]
[399624740,1766565038130,-1330.67608248,0.00016912,2]
[399624741,1766565038140,-1330.67608248,0.00016925,2]
[399624742,1766565038151,-1330.67608248,0.00016937,2]
[399624743,1766565038161,-1330.67608248,0.0001695,2]
[399624744,1766565038171,-1330.67608248,0.00016962,2]
[399624745,1766565038181,-38211.75108611,0.00016986,2]
[399624746,1766565038265,-86099.1503486,0.00016986,2]
[399624750,1766565040219,-479.09142284,0.00016986,2]
[399624751,1766565040391,-165080.56187151,0.00016986,2]
[399624752,1766565040402,-186.84928109,0.0001699,2]
[399624753,1766565040412,-186.84928109,0.0001699,2]
[399624754,1766565040422,-186.84928109,0.0001699,2]
[399624755,1766565040432,-151.0,0.00016997,2]
[399624756,1766565040442,-80140.69720617,0.00016999,3]
[399624757,1766565040452,-300.0,0.00016999,2]
[399624758,1766565040462,-666.0,0.00016999,2]
[399624759,1766565040472,-300.0,0.00016999,2]
[399624760,1766565040482,-300.0,0.00016999,2]
[399624761,1766565040492,-300.0,0.00016999,2]
[399624762,1766565040502,-500.0,0.00016999,2]
[399624763,1766565040512,-500.0,0.00016999,2]
[399624764,1766565040522,-256.88603403,0.00016999,2]
[399624765,1766565040533,-216.12753601,0.00016999,2]
[399624766,1766565040543,-319.61052255,0.00016999,2]
[399624767,1766565040554,-250.0,0.00017,2]
[399624768,1766565040564,-3698026.90474176,0.00017,2]
[399624779,1766565043296,-331.62481426,0.00017,2]
[399624780,1766565043534,-1238.90902816,0.00017,2]
[399624781,1766565046109,-34562.77419444,0.00017,2]
[399624782,1766565046122,-265.60627094,0.00017,2]
[399624783,1766565046141,-602.0,0.00017,2]
[399624784,1766565046397,-979.83049372,0.00017,2]
[399624785,1766565046409,-2343.1709747,0.00017,2]
[399624789,1766565666553,171.0,0.00012687,2]
[399624791,1766566017148,-150.0,0.00015288,2]
[399624792,1766566017170,-152.81357025,0.00015288,2]
[399624793,1766566017193,-112.65466506,0.00015288,2]
[399624794,1766566158084,-1200.0,0.00015287,2]
[399624795,1766566158109,-37.34533494,0.00015288,2]
[399624796,1766566158130,-150.0,0.00015288,2]
[399624797,1766566158152,-150.0,0.00015288,2]
[399624798,1766566158172,-150.0,0.00015288,2]
[399624799,1766566158193,-150.0,0.00015288,2]
[399624800,1766566158215,-150.0,0.00015288,2]
[399624801,1766566158235,-152.31137415,0.00015288,2]
[399624802,1766566158258,-150.0,0.00015288,2]
[399624803,1766566158279,-150.0,0.00015288,2]
[399624804,1766566158300,-150.0,0.00015288,2]
[399624811,1766566232104,-250.0,0.00015392,2]
[399624812,1766566232114,-999.0,0.00015411,3]
[399624813,1766566232125,-238.46,0.00015496,2]
[399624814,1766566232137,-150.0,0.00015627,2]
[399624815,1766566232146,-1023.92726421,0.00015683,2]
[399624816,1766566232260,-284.81273579,0.00015683,2]
[399624817,1766566232271,-150.0,0.00015854,2]
[399624818,1766566232281,-53.2402541,0.00015871,2]
[399624819,1766566232294,-2170.0,0.00015871,2]
[399624820,1766566232306,-405.05,0.00015871,2]
[399624822,1766566232317,-1391.9138548,0.00015871,2]
[399624824,1766566232334,-246.9858911,0.00015871,2]
[399624826,1766566232343,-124.3401087,0.0001592,2]
[399624958,1766566238368,-175.6598913,0.0001592,2]
[399624959,1766566238380,-402.39695985,0.00015922,2]
[399624960,1766566238392,-2723.82923849,0.00015922,2]
[399624987,1766566240401,-452.84111337,0.00015922,2]
[399624988,1766566240413,-6424.43268829,0.00015922,2]
[399624989,1766566240423,-323.08,0.00015948,2]
[399624990,1766566240434,-150.0,0.00015967,2]
[399624991,1766566240444,-591.54,0.00015988,2]
[399624992,1766566240455,-3240.0,0.0001599,2]
[399624993,1766566240464,-151.0,0.00015997,2]
[399624994,1766566240474,-151.0,0.00015998,2]
[399624995,1766566240484,-151.0,0.00016004,2]
[399624996,1766566240493,-151.0,0.00016007,2]
[399624997,1766566240504,-1000.0,0.00016076,2]
[399624998,1766566240515,-150.0,0.00016137,2]
[399624999,1766566240524,-150.0,0.00016307,2]
[399625000,1766566240534,-150.0,0.0001642,2]
[399625002,1766566240563,-6932.01,0.00016438,2]
[399625004,1766566240573,-197.89081002,0.00016553,2]
[399625005,1766566240583,-150.0,0.00016647,2]
[399625006,1766566240594,-300.0,0.00016652,2]
[399625007,1766566240603,-2261.2951,0.00016653,2]
[399625008,1766566240613,-74917.8392,0.00016653,2]
[399625009,1766566240623,-2119.501,0.00016653,2]
[399625010,1766566240633,-29639.8901,0.00016653,2]
[399625011,1766566240643,-164.83745116,0.00016655,2]
[399625012,1766566240653,-6711.13744846,0.00016657,2]
[399625013,1766566240663,-711.58062769,0.00016657,2]
[399625014,1766566240672,-6711.13744842,0.00016684,2]
[399625015,1766566240682,-6711.13744842,0.00016711,2]
[399625016,1766566240692,-431.35103127,0.00016715,2]
[399625017,1766566240703,-5331.90806721,0.00016716,2]
[399625018,1766566240713,-1200.0,0.00016726,2]
[399625019,1766566240723,-213.47055646,0.00016728,2]
[399625020,1766566240733,-5331.90806718,0.00016736,2]
[399625022,1766566240743,-6711.13744842,0.00016738,2]
[399625024,1766566240753,-151.0,0.0001675,2]
[399625026,1766566240763,-500.0,0.00016752,2]
[399625027,1766566240772,-256.88603403,0.00016752,2]
[399625028,1766566240782,-319.61052255,0.00016752,2]
[399625029,1766566240792,-216.12753601,0.00016752,2]
[399625030,1766566240802,-500.0,0.00016752,2]
[399625031,1766566240812,-876.113,0.00016752,2]
[399625032,1766566240822,-177.7888445,0.00016752,2]
[399625033,1766566240832,-1000000.0,0.00016753,2]
[399625034,1766566240842,-5331.90806718,0.00016757,2]
[399625035,1766566240853,-5331.90806718,0.00016777,2]
[399625036,1766566240863,-5331.90806718,0.00016798,2]
[399625037,1766566240873,-195.0,0.00016816,2]
[399625038,1766566240883,-300.0,0.00016816,2]
[399625039,1766566240893,-300.0,0.00016816,2]
[399625040,1766566240908,-300.0,0.00016816,2]
[399625041,1766566240919,-250.0,0.00016816,2]
[399625042,1766566240929,-250.0,0.00016816,2]
[399625043,1766566240939,-5331.90806718,0.00016818,2]
[399625044,1766566240950,-5331.90806718,0.00016839,2]
[399625045,1766566240962,-5331.90806718,0.00016859,2]
[399625046,1766566240973,-5331.90806718,0.0001688,2]
[399625047,1766566240984,-1000.0,0.000169,2]
[399625048,1766566240995,-8384.5734,0.000169,2]
[399625049,1766566241005,-235.35241233,0.000169,2]
[399625050,1766566241015,-310.2776418,0.000169,2]
[399625051,1766566241026,-964.2098061,0.000169,2]
[399625052,1766566241038,-236.5746094,0.000169,2]
[399625053,1766566241048,-320.5755382,0.000169,2]
[399625054,1766566241060,-5331.90806718,0.000169,2]
[399625055,1766566241070,-150.0,0.00016986,2]
[399625056,1766566241081,-150.00000001,0.00016986,2]
[399625057,1766566241092,-153.48620935,0.00016986,2]
[399625059,1766566241103,-150.0,0.00016986,2]
[399625060,1766566241114,-150.0,0.00016986,2]
[399625063,1766566241125,-278.06182504,0.00016986,2]
[399625065,1766566241137,-151.59672163,0.00016986,2]
[399625067,1766566241147,-150.0,0.00016986,2]
[399625069,1766566241157,-186.84928109,0.00016989,2]
[399625071,1766566241167,-186.84928109,0.0001699,2]
[399625073,1766566241177,-186.84928109,0.0001699,2]
[399625075,1766566241187,-151.0,0.00016997,2]
[399625077,1766566241196,-177372.3120622,0.00016999,2]
[399625079,1766566241206,-6434.8591848,0.00016999,2]
[399625081,1766566241216,-157.0323908,0.00016999,2]
[399625083,1766566241226,-300.0,0.00016999,2]
[399625085,1766566241236,-666.0,0.00016999,2]
[399625087,1766566241246,-2300.3900526,0.00016999,2]
[399625089,1766566241256,-300.0,0.00016999,2]
[399625092,1766566241267,-300.0,0.00016999,2]
[399625094,1766566241278,-300.0,0.00016999,2]
[399625096,1766566241294,-666.0,0.00016999,2]
[399625098,1766566241304,-2528796.61109024,0.00017,2]
[399625146,1766566243552,-372.94045814,0.00016765,2]
[399625152,1766566246191,-151.0,0.00016045,2]
[399625153,1766566246205,-6338.19699028,0.00016765,2]
[399625154,1766566246219,-36390.93068236,0.00017,2]
[399625155,1766566246455,-2004.92417743,0.00017,2]
[399625157,1766566445899,595.1,8.113e-05,2]
[399625158,1766566446094,595.1,8.54e-05,2]
[399625159,1766566446293,595.1,8.967e-05,2]
[399625160,1766566446491,595.1,9.394e-05,2]
[399625161,1766566446693,595.1,9.821e-05,2]
[399625162,1766566446903,595.1,0.00010248,2]
[399625163,1766566447125,595.1,0.00010675,2]
[399625164,1766566447305,595.1,0.00011102,2]
[399625165,1766566447502,595.1,0.00011529,2]
[399625166,1766566447691,595.1,0.00011956,2]
[399625167,1766566447904,595.1,0.00012383,2]
[399625168,1766566448309,595.1,0.0001281,2]
[399625169,1766566448530,595.1,0.00013237,2]
[399625170,1766566448745,595.1,0.00013664,2]
[399625171,1766566448952,595.1,0.00014091,2]
[399625172,1766566449173,595.1,0.00014518,2]
[399625173,1766566506079,166.66,0.00014839,2]
[399625174,1766566616460,153.02179494,0.000226,120]
[399625175,1766566650831,469.0,0.000226,120]
[399625176,1766566746987,-150.0,0.00014945,2]
[399625177,1766566856295,311.75,0.00013699,2]
[399625178,1766566856320,449.51,0.00013699,2]
[399625180,1766567241961,-158.6720175,0.00014862,2]
[399625181,1766567246638,150.0,0.00014797,2]
[399625182,1766567347830,-298983.3762254,0.00042806,7]
[399625183,1766567347859,-1937527.97909553,0.00042806,7]
[399625184,1766567347887,-2763488.64467907,0.00042806,7]
[399625185,1766567394423,-23274.26079208,0.00025,120]
[399625186,1766567394475,-6386.0,0.00026,120]
[399625187,1766567394511,-250.0,0.000284,120]
[399625188,1766567394541,-491412.61560995,0.000295,120]
[399625189,1766567394568,-5168.23722807,0.000295,120]
[399625190,1766567394599,-3007.52697745,0.0003,120]
[399625191,1766567394626,-300.0,0.0003,120]
[399625192,1766567394654,-3612.42890557,0.0003,120]
[399625193,1766567394683,-10000.0,0.00030137,120]
[399625194,1766567394713,-300.0,0.000314,120]
[399625195,1766567394740,-185.98,0.00031507,120]
[399625196,1766567394766,-300.0,0.00032,120]
[399625197,1766567394792,-165.0,0.00032,120]
[399625198,1766567394820,-150.0,0.00032876,120]
[399625199,1766567395375,25743.79294887,0.00032777,120]
[399625287,1766567432279,-274.0,0.00014945,2]
[399625288,1766567432290,-300.0,0.00014945,2]
[399625289,1766567432300,-55.07245925,0.00014945,2]
[399625290,1766567432312,-139.92754075,0.00014945,2]
[399625291,1766567432322,-195.0,0.00014945,2]
[399625292,1766567432332,-42.38836453,0.00014945,2]
[399625293,1766567432344,-207.61163547,0.00014945,2]
[399625294,1766567432354,-300.0,0.00014945,2]
[399625295,1766567432363,-150.62067411,0.00014945,2]
[399625296,1766567432375,-294.47932589,0.00014945,2]
[399625297,1766567432385,-200.0,0.00014962,2]
[399625298,1766567432395,-500.0,0.00015146,2]
[399625299,1766567432404,-166.66,0.00015151,2]
[399625300,1766567432414,-1200.0,0.00015287,2]
[399625301,1766567432424,-300.0,0.00015287,2]
[399625302,1766567432434,-1200.0,0.00015287,2]
[399625303,1766567432444,-150.0,0.00015288,2]
[399625304,1766567432456,-150.0,0.00015288,2]
[399625305,1766567432466,-150.0,0.00015288,2]
[399625306,1766567432476,-153.48620936,0.00015288,2]
[399625307,1766567432485,-150.0,0.00015288,2]
[399625308,1766567432495,-150.0,0.00015288,2]
[399625309,1766567432506,-151.59672162,0.00015288,2]
[399625310,1766567432516,-150.0,0.00015288,2]
[399625311,1766567432526,-150.0,0.00015288,2]
[399625312,1766567432536,-150.0,0.00015288,2]
[399625313,1766567432546,-595.1,0.00015372,2]
[399625314,1766567432556,-166.66,0.00015464,2]
[399625315,1766567432565,-152.0,0.00015671,2]
[399625316,1766567432580,-1026.07026313,0.00015676,2]
[399625317,1766567432596,-5754.54588977,0.00015676,2]
[399625319,1766567432605,-711.58062769,0.00015676,2]
[399625321,1766567432617,-206.61149731,0.00015676,2]
[399625322,1766567432626,-158.67201749,0.00015688,2]
[399625323,1766567432636,-150.0,0.00015712,2]
[399625324,1766567432647,-151.0,0.00015769,2]
[399625325,1766567432657,-300.0,0.0001577,2]
[399625326,1766567432667,-319.61052255,0.00015771,2]
[399625327,1766567432677,-256.88603403,0.00015771,2]
[399625328,1766567432687,-500.0,0.00015771,2]
[399625329,1766567432697,-500.0,0.00015771,2]
[399625330,1766567432707,-500.0,0.00015771,2]
[399625331,1766567432716,-500.0,0.00015771,2]
[399625332,1766567432726,-500.0,0.00015771,2]
[399625333,1766567432737,-500.0,0.00015771,2]
[399625334,1766567432747,-500.0,0.00015771,2]
[399625335,1766567432756,-500.0,0.00015771,2]
[399625336,1766567432766,-500.0,0.00015771,2]
[399625337,1766567432776,-500.0,0.00015771,2]
[399625338,1766567432786,-500.0,0.00015771,2]
[399625339,1766567432795,-500.0,0.00015771,2]
[399625340,1766567432805,-500.0,0.00015771,2]
[399625341,1766567432815,-500.0,0.00015771,2]
[399625342,1766567432826,-500.0,0.00015771,2]
[399625343,1766567432836,-500.0,0.00015771,2]
[399625344,1766567432845,-500.0,0.00015771,2]
[399625345,1766567432855,-500.0,0.00015771,2]
[399625346,1766567432865,-500.0,0.00015771,2]
[399625348,1766567432875,-500.0,0.00015771,2]
[399625350,1766567432885,-500.0,0.00015771,2]
[399625351,1766567432895,-500.0,0.00015771,2]
[399625352,1766567432905,-500.0,0.00015771,2]
[399625353,1766567432915,-308.49556762,0.00015771,2]
[399625354,1766567432926,-500.0,0.00015771,2]
[399625355,1766567432935,-500.0,0.00015771,2]
[399625356,1766567432945,-500.0,0.00015771,2]
[399625357,1766567432956,-500.0,0.00015771,2]
[399625358,1766567432965,-500.0,0.00015771,2]
[399625359,1766567432975,-500.0,0.00015771,2]
[399625360,1766567432985,-216.12753601,0.00015771,2]
[399625361,1766567432995,-185275.8619072,0.00015772,2]
[399625362,1766567433008,-42972.32169516,0.00015772,2]
[399625363,1766567433023,-1110.51759736,0.00015772,2]
[399625364,1766567433035,-2269.61254982,0.00015772,2]
[399625365,1766567433051,-1027.11678612,0.00015772,2]
[399625366,1766567433062,-2497.25951276,0.00015772,2]
[399625367,1766567433074,-458.42519,0.00015772,2]
[399625368,1766567433086,-753.54269787,0.00015772,2]
[399625369,1766567433099,-24866.52867336,0.00015772,2]
[399625370,1766567433110,-10755.99079228,0.00015772,2]
[399625371,1766567433122,-976.66904819,0.00015772,2]
[399625372,1766567433133,-932.31905122,0.00015772,2]
[399625373,1766567433145,-422.81516774,0.00015772,2]
[399625377,1766567438398,-754.07848955,0.00015772,2]
[399625378,1766567438410,-6109.99999996,0.00015772,2]
[399625379,1766567438453,-39955.82228453,0.00015772,2]
[399625380,1766567438465,-1817.01184,0.00015772,2]
[399625414,1766567440505,-30981.75528214,0.00015772,2]
[399625415,1766567440517,-646062.35143474,0.00015772,2]
[399625416,1766567440527,-166.66,0.00015776,2]
[399625417,1766567440537,-2119.501,0.00015788,2]
[399625418,1766567440547,-595.1,0.00015799,2]
[399625419,1766567440557,-164.83745116,0.00015812,2]
[399625420,1766567440568,-6780.61615288,0.00015812,2]
[399625421,1766567440581,-150.0,0.00015854,2]
[399625422,1766567440591,-151.0,0.00015854,2]
[399625423,1766567440600,-1085.787,0.00015885,2]
[399625424,1766567440610,-170.245,0.00015885,2]
[399625425,1766567440621,-5331.90806721,0.00015886,2]
[399625426,1766567440631,-378.79,0.00015887,2]
[399625427,1766567440641,-151.0,0.00015928,2]
[399625428,1766567440652,-151.0,0.00015928,2]
[399625429,1766567440662,-151.0,0.00015942,2]
[399625430,1766567440672,-6780.61615288,0.00015948,2]
[399625431,1766567440682,-5331.90806718,0.00015999,2]
[399625432,1766567440692,-150.0,0.00016056,2]
[399625433,1766567440702,-6780.61615288,0.00016084,2]
[399625434,1766567440712,-166.66,0.00016088,2]
[399625435,1766567440722,-5331.90806718,0.00016111,2]
[399625436,1766567440732,-150.0,0.00016137,2]
[399625437,1766567440741,-150.0,0.00016137,2]
[399625438,1766567440751,-378.79,0.00016161,2]
[399625439,1766567440761,-6780.61615288,0.0001622,2]
[399625440,1766567440771,-5331.90806718,0.00016224,2]
[399625441,1766567440781,-595.1,0.00016226,2]
[399625442,1766567440790,-164.31,0.00016307,2]
[399625443,1766567440800,-5331.90806718,0.00016337,2]
[399625444,1766567440809,-6780.61615288,0.00016356,2]
[399625445,1766567440819,-166.66,0.00016401,2]
[399625446,1766567440829,-150.0,0.0001642,2]
[399625447,1766567440839,-378.79,0.00016435,2]
[399625448,1766567440849,-250.0,0.0001644,2]
[399625449,1766567440859,-250.0,0.0001644,2]
[399625450,1766567440868,-300.0,0.0001644,2]
[399625451,1766567440878,-195.0,0.0001644,2]
[399625452,1766567440888,-1489.47687703,0.0001644,4]
[399625454,1766567440898,-300.0,0.0001644,2]
[399625455,1766567440908,-195.0,0.0001644,2]
[399625456,1766567440919,-195.0,0.0001644,2]
[399625457,1766567440929,-300.0,0.0001644,2]
[399625458,1766567440940,-300.0,0.0001644,2]